[Event "3rd Perez Open 2024"]
[Site "Santa Fe"]
[Date "2024.02.25"]
[Round "7.4"]
[White "Amura, Claudia"]
[Black "Felgaer, Ruben"]
[Result "0-1"]
[ECO "D14"]
[WhiteElo "2196"]
[BlackElo "2572"]
[Annotator "TA"]
[PlyCount "98"]
[EventDate "2024.02.18"]
[EventType "swiss"]
[EventCountry "ARG"]
[SourceTitle "playchess.com"]
[Source "ChessBase"]
[SourceQuality "1"]
[TimeControl "5400+30"]

{[%evp 18,98,3,-10,0,0,0,-101,-95,-115,-97,-90,-53,-53,-53,-61,-37,-47,-42,-72,-61,-82,-66,-78,-84,-83,-55,-95,-96,-97,-93,-102,-96,-111,-114,-118,-115,-153,-148,-139,-135,-145,-143,-151,-146,-148,-137,-143,-134,-166,-164,-180,-166,-260,-256,-253,-245,-237,-239,-298,-294,-286,-286,-374,-376,-350,-346,-507,-508,-584,-577,-553,-553,-5608,-5229,-5608,-5492,-5522,-5228,-4710,-1420,-5131,-5059]} 1. d4 {[%emt 0:00:25]} d5 {[%emt 0:01:48]} 2. c4 {[%emt 0:01:06]} c6 {[%emt 0:00:46]} 3. Nf3 {[%emt 0:06:56]} Nf6 {[%emt 0:00:07]} 4. cxd5 {[%emt 0:00:27]} cxd5 {[%emt 0:00:09]} 5. Nc3 {[%emt 0:00:06]} Nc6 {[%emt 0:00:06]} 6. Bf4 {[%emt 0:00:22]} Bf5 {[%emt 0:00:12]} 7. e3 {[%emt 0:01:07]} e6 {[%emt 0:00:17]} 8. Ne5 {[%emt 0:03:53]} Nxe5 {[%emt 0:04:54]} 9. Bxe5 {[%emt 0:04:44]} Nd7 {[%emt 0:01:00]} 10. Qb3 {[%emt 0:09:30]} Nxe5 {[%emt 0:02:17]} 11. dxe5 {[%emt 0:00:07] [#] Intending Bb5+ and mate.} Be7 {[%emt 0:00:55]} 12. e4 {[%emt 0:12:23]} (12. Bb5+ $11 Kf8 13. O-O) 12... dxe4 $17 {[%emt 0:05:46] Black is better.} 13. Qb5+ {[%emt 0:12:21]} Kf8 {[%emt 0:07:56]} 14. Rd1 {[%emt 0:01:49]} Qb6 {[%emt 0:00:29]} 15. Rd7 {[%emt 0:01:00]} Qxb5 {[%emt 0:09:50]} 16. Bxb5 {[%emt 0:07:59]} Rb8 {[%emt 0:00:17]} 17. O-O {[%emt 0:00:46]} g5 18. Re1 {[%emt 0:02:11]} Bb4 {[%emt 0:04:17]} 19. Re3 {[%emt 0:02:28]} Bc5 {[%emt 0:01:41]} 20. Re1 {[%emt 0:03:28]} a6 {[%emt 0:01:49]} 21. Bf1 {[%emt 0:08:04]} Ke8 {[%emt 0:07:37]} 22. Rdd1 {[%emt 0:00:05] [#] Black keeps a firm grip on the game.} e3 $1 {[%emt 0:00:48]} 23. fxe3 {[%emt 0:00:50]} Ke7 {[%emt 0:00:43]} 24. Kf2 {[%emt 0:06:15]} Rhd8 {[%emt 0:01:11] Prevents Bd3} 25. Kf3 {[%emt 0:00:59]} Bb6 {[%emt 0:02:47] A strong pair of Bishops.} 26. Ne4 {[%emt 0:07:10]} Bc7 {[%emt 0:04:02]} 27. g4 {[%emt 0:00:06]} Bg6 {[%emt 0:00:21]} 28. Nd6 {[%emt 0:01:56]} Bxd6 {[%emt 0:02:30]} 29. exd6+ {[%emt 0:00:04]} Rxd6 {[%emt 0:00:06]} 30. Rxd6 {[%emt 0:00:38]} Kxd6 {[%emt 0:00:01][%mdl 4096] Endgame. KRB-KRB} 31. Rc1 {[%emt 0:00:36]} h5 {[%emt 0:09:25]} 32. h3 {[%emt 0:01:39]} a5 {[%emt 0:00:52]} 33. b4 {[%emt 0:00:33]} axb4 {[%emt 0:15:08]} 34. Rc4 {[%emt 0:00:08]} hxg4+ {[%emt 0:09:52]} 35. hxg4 {[%emt 0:00:05]} (35. Kxg4 $142 b3 36. axb3) 35... Bb1 $19 {[%emt 0:01:11]} 36. Rd4+ {[%emt 0:02:55]} Ke7 {[%emt 0:01:39]} 37. Rxb4 {[%emt 0:00:55]} Bxa2 {[%emt 0:00:05]} 38. e4 {[%emt 0:00:11]} e5 {[%emt 0:00:38]} 39. Rb6 {[%emt 0:01:24]} Kd7 {[%emt 0:02:09]} 40. Bb5+ {[%emt 0:01:20]} Kc7 {[%emt 0:00:23]} 41. Rh6 {[%emt 0:00:23]} Be6 {[%emt 0:01:03]} 42. Rh7 {[%emt 0:00:28]} (42. Ke3 $142) 42... Kb6 {[%emt 0:00:32] Black is clearly winning.} 43. Be2 {[%emt 0:00:12]} Kc5 {[%emt 0:01:09] Threatens to win with ...b5.} 44. Rg7 {[%emt 0:00:11]} b5 {[%emt 0:00:18]} 45. Rxg5 {[%emt 0:00:05]} Kd4 {[%emt 0:00:09]} 46. Rh5 {[%emt 0:00:29]} b4 {[%emt 0:00:47]} 47. Rh1 {[%emt 0:00:45]} b3 {[%emt 0:00:46]} 48. Rd1+ {[%emt 0:01:17]} Kc3 {[%emt 0:01:06]} 49. Ke3 {[%emt 0:01:06]} b2 {[%emt 0:03:06] Weighted Error Value: White=0.58/Black=0.04 (flawless) .  Mistake:       	White=3     	---        Inaccurate:     	White=5     	Black=2      OK:         	White=14    	Black=20     Best:        	---       	Black=3} 0-1

[Event "3rd Perez Open 2024"]
[Site "Santa Fe"]
[Date "2024.02.25"]
[Round "7.5"]
[White "Perez, Maximiliano"]
[Black "Dubrovich, Igor"]
[Result "1/2-1/2"]
[ECO "B50"]
[WhiteElo "2383"]
[BlackElo "2029"]
[Annotator "TA"]
[PlyCount "58"]
[EventDate "2024.02.18"]
[EventType "swiss"]
[EventCountry "ARG"]
[SourceTitle "playchess.com"]
[Source "ChessBase"]
[SourceQuality "1"]
[TimeControl "5400+30"]

{[%evp 10,58,21,0,10,3,17,6,15,0,18,1,28,17,24,0,31,0,8,0,38,0,8,10,33,-101,0,16,57,26,56,0,0,0,0,0,19,0,69,-79,0,0,122,104,80,-431,-405,-435,0,0,0]} 1. e4 {[%emt 0:03:34]} c5 {[%emt 0:00:29]} 2. Nf3 {[%emt 0:02:22][%cal Bg1f3,Bf3e5,Be5c4][%mdl 32]} d6 {[%emt 0:00:08]} 3. Nc3 {[%emt 0:03:03]} Nf6 {[%emt 0:00:08]} 4. e5 {[%emt 0:00:14]} dxe5 {[%emt 0:01:01]} 5. Nxe5 {[%emt 0:00:10]} Nbd7 {[%emt 0:01:19]} 6. Nc4 {[%emt 0:03:32]} Nb6 {[%emt 0:06:57]} 7. Qf3 {[%emt 0:00:36]} e6 {[%emt 0:13:47]} 8. b3 {[%emt 0:05:54]} Be7 {[%emt 0:00:35]} 9. Bb2 {[%emt 0:00:37]} O-O {[%emt 0:00:57]} 10. O-O-O {[%emt 0:02:41]} Nfd5 {[%emt 0:01:57] [#]} 11. h4 $1 {[%emt 0:06:19]} Bf6 {[%emt 0:02:44]} 12. g4 {[%emt 0:03:19][%cal Bg2g4,Bg4g5][%mdl 32]} Bd7 {[%emt 0:05:40]} 13. g5 {[%emt 0:24:04]} (13. Qg3 $5) 13... Bd4 {[%emt 0:02:39]} 14. Ne4 {[%emt 0:16:33]} (14. Qg3 {simplifies} Nxc4 15. Bxc4 Ne7 16. h5) 14... Bxb2+ {[%emt 0:02:14]} 15. Kxb2 {[%emt 0:00:33]} Nxc4+ {[%emt 0:02:08]} 16. Bxc4 {[%emt 0:00:01]} Bc6 {[%emt 0:04:56]} 17. c3 (17. Nxc5 $2 Nb6 18. Qf4 Bxh1 19. Rxh1 Nxc4+ 20. bxc4 e5 21. Qxe5 Qxd2 $19) (17. Rhe1 $14 {keeps the upper hand.}) 17... Nb6 {[%emt 0:11:17]} (17... f5 $1 $17 {[%cal Rf5e4]} 18. Nxc5 Qd6) 18. Bd3 $11 {[%emt 0:05:26]} Nd7 {[%emt 0:08:07] aiming for ...Ne5.} 19. Qe3 {[%emt 0:01:45]} a5 {[%emt 0:03:41]} 20. h5 {[%emt 0:08:16]} (20. a4 $1 $14) 20... a4 {[%emt 0:05:00]} 21. g6 {[%emt 0:00:47]} axb3 {[%emt 0:01:24]} 22. axb3 {[%emt 0:00:36] h6 would now be deadly.} Ne5 {[%emt 0:02:41]} 23. Be2 {[%emt 0:00:49] Hoping for h6.} (23. Bc2 $5 fxg6 24. hxg6 $11) 23... c4 {[%emt 0:04:43]} (23... hxg6 $2 24. f4 Bd5 25. fxe5 $18) (23... h6 $11) 24. b4 {[%emt 0:02:12]} (24. gxh7+ Kh8 $18) (24. h6 $1 $14 fxg6 (24... Nxg6 $2 25. hxg7 cxb3 26. gxf8=Q+ $18) 25. hxg7 Bxe4 26. gxf8=Q+ (26. gxf8=R+ Qxf8 27. Ra1 Bxh1 $14) 26... Qxf8 27. Ra1 (27. Qxe4 $2 Qa3+ 28. Kc2 cxb3+ 29. Kb1 Qa1#) 27... Bxh1 28. Rxa8 Qxa8 29. Qxe5 cxb3 30. Qxe6+ Kg7 31. Qe5+ (31. Kxb3 Qg8 $11) (31. Qxb3 Qf8 $15) 31... Kh6 32. Kxb3 (32. Qh2+ Kg7 $11)) 24... Nd3+ {[%emt 0:00:33]} (24... hxg6 25. hxg6 fxg6 26. Nc5) ({Better is} 24... fxg6 $17 {And now ...Nd3+ would win.} 25. hxg6 hxg6) 25. Bxd3 {[%emt 0:00:10]} cxd3 {[%emt 0:01:21]} (25... Qxd3 $11 26. gxh7+ Kxh7 27. Qxd3 cxd3) 26. Ra1 {[%emt 0:04:15]} Qd5 {[%emt 0:02:13] [#]} 27. Nf6+ $2 {[%emt 0:02:22][%mdl 8192]} gxf6 $19 {[%emt 0:01:50]} 28. Qh6 {[%emt 0:00:10]} hxg6 {[%emt 0:02:27]} ({Inferior is} 28... Qxh1 29. Qxh7#) (28... fxg6 $19 {Threatens to win with ...Ba4.} 29. hxg6 Ra2+ 30. Rxa2 Qxh1 31. gxh7+ Kf7) 29. Rhg1 $1 $11 {[%emt 0:03:07] Dancing on a razor blade.} (29. hxg6 $2 {is the wrong capture.} Ra2+ 30. Rxa2 Qxh1 $19) 29... Rxa1 {[%emt 0:01:51] Weighted Error Value: White=0.45/Black=0.43.  Loses game:     	White=1     	---        Missed win:     	---       	Black=1      Mistake:       	White=3     	Black=4      Inaccurate:     	White=2     	Black=4      OK:         	White=4     	Black=7      Best:        	White=1     	Black=3      Strong:       	White=1     	---} 1/2-1/2

[Event "3rd Perez Open 2024"]
[Site "Santa Fe"]
[Date "2024.02.25"]
[Round "7.6"]
[White "Alvarez, Leandro"]
[Black "Sanhueza, Cristian"]
[Result "1/2-1/2"]
[ECO "D00"]
[WhiteElo "2103"]
[BlackElo "2222"]
[Annotator "RC"]
[PlyCount "58"]
[EventDate "2024.02.18"]
[EventType "swiss"]
[EventCountry "ARG"]
[SourceTitle "playchess.com"]
[Source "ChessBase"]
[SourceQuality "1"]
[TimeControl "5400+30"]

1. Nf3 {[%emt 0:00:18]} Nf6 {[%emt 0:03:15]} 2. Nc3 {[%emt 0:00:36]} d5 {[%emt 0:11:32]} 3. d4 {[%emt 0:02:31]} c5 {[%emt 0:03:06]} 4. dxc5 {[%emt 0:06:16]} e6 {[%emt 0:07:31]} 5. e4 {[%emt 0:00:41]} Bxc5 {[%emt 0:03:44]} 6. exd5 {[%emt 0:11:04]} exd5 {[%emt 0:03:47]} 7. Bb5+ {[%emt 0:07:19]} Nc6 {[%emt 0:01:01]} 8. Qe2+ {[%emt 0:00:35]} Be6 {[%emt 0:04:30]} 9. Bg5 {[%emt 0:08:17]} O-O {[%emt 0:00:59]} 10. O-O-O {[%emt 0:01:15]} Be7 {[%emt 0:01:31]} 11. Rhe1 {[%emt 0:02:30]} Qa5 {[%emt 0:03:48]} 12. Bxc6 bxc6 {[%emt 0:33:47]} 13. Nd4 {[%emt 0:04:45]} Ba3 14. Nb1 {[%emt 0:38:44]} Ne4 {[%emt 0:08:33]} 15. Nxa3 {[%emt 0:02:30]} Nxg5 {[%emt 0:00:04]} 16. f3 {[%emt 0:01:14]} Bd7 {[%emt 0:01:04]} 17. Nb3 {[%emt 0:01:26]} Qc7 {[%emt 0:01:36]} 18. Nc5 {[%emt 0:03:54]} Ne6 {[%emt 0:00:41]} 19. Nxd7 {[%emt 0:01:20]} Qxd7 {[%emt 0:00:01]} 20. Nc4 {[%emt 0:00:36]} Rab8 {[%emt 0:04:58]} 21. Ne5 {[%emt 0:00:33]} Qb7 {[%emt 0:00:02]} 22. b3 {[%emt 0:00:15]} Rfe8 {[%emt 0:00:38]} 23. Qd2 {[%emt 0:00:48]} Rbd8 {[%emt 0:01:16]} 24. Qa5 {[%emt 0:02:29]} c5 {[%emt 0:00:27]} 25. c4 {[%emt 0:01:00]} d4 {[%emt 0:02:56]} 26. Nd3 {[%emt 0:00:01]} Qb6 {[%emt 0:01:30]} 27. Qxb6 {[%emt 0:00:21]} axb6 {[%emt 0:00:01]} 28. Re2 {[%emt 0:00:50]} f6 {[%emt 0:01:04]} 29. Rde1 {[%emt 0:00:07]} Kf7 {[%emt 0:00:04]} 1/2-1/2